bitfinex/quotes_SOLUSD_20230112
["timestamp","ask_amount","ask_price","bid_price","bid_amount"]
[1673517727357,47.7,16.046,16.036,125.89917437]
[1673517727973,46.74,16.046,16.036,125.89917437]
[1673517728185,20.0,16.047,16.036,125.89917437]
[1673517728393,46.74,16.049,16.036,125.89917437]
[1673517728394,20.0,16.048,16.036,125.89917437]
[1673517728713,46.74,16.047,16.036,125.89917437]
[1673517729036,20.0,16.046,16.036,125.89917437]
[1673517729651,66.74,16.047,16.036,125.89917437]
[1673517729861,0.96,16.046,16.036,125.89917437]
[1673517730076,46.75,16.045,16.036,125.89917437]
[1673517730309,0.96,16.044,16.036,125.89917437]
[1673517730494,46.75,16.043,16.036,125.89917437]
[1673517730909,65.89496728,16.043,16.036,125.89917437]
[1673517731134,19.14496728,16.042,16.036,125.89917437]
[1673517731344,46.76,16.041,16.036,125.89917437]
[1673517731560,46.75,16.043,16.036,125.89917437]
[1673517731968,19.14496728,16.044,16.036,125.89917437]
[1673517732179,46.75,16.045,16.036,125.89917437]
[1673517732502,46.74,16.046,16.036,125.89917437]
[1673517732709,19.14496728,16.045,16.036,125.89917437]
[1673517732911,46.75,16.044,16.036,125.89917437]
[1673517733327,65.89496728,16.044,16.036,125.89917437]
[1673517733536,20.0,16.043,16.036,125.89917437]
[1673517733852,46.76,16.042,16.036,125.89917437]
[1673517734509,20.0,16.04,16.036,125.89917437]
[1673517734689,83.77,16.039,16.036,125.89917437]
[1673517734906,102.91496728,16.039,16.036,125.89917437]
[1673517735123,83.77,16.039,16.036,125.89917437]
[1673517735335,39.14496728,16.038,16.03,0.83833514]
[1673517735546,46.77,16.037,16.03,0.83833514]
[1673517735765,37.0,16.036,16.03,0.83833514]
[1673517736076,46.78,16.035,16.03,0.83833514]
[1673517736289,20.0,16.033,16.021,24.944149]
[1673517736501,88.45,16.03,16.021,24.944149]
[1673517736696,67.75,16.029,16.021,24.944149]
[1673517736907,20.0,16.027,16.013,62.037449]
[1673517737130,66.8,16.026,16.013,62.037449]
[1673517737442,43.42648314,16.026,16.012,20.0]
[1673517737656,20.0,16.033,16.014,21.22226568]
[1673517737974,20.0,16.031,16.012,20.0]
[1673517738159,64.39,16.03,16.011,23.2233]
[1673517738370,20.0,16.029,16.011,23.2233]
[1673517738596,46.8,16.028,16.011,23.2233]
[1673517738804,46.8,16.028,16.012,1.92]
[1673517739026,20.0,16.027,16.012,0.96]
[1673517739250,66.8,16.026,16.012,0.96]
[1673517739443,66.8,16.026,16.011,23.2233]
[1673517739663,0.96,16.025,16.011,23.2233]
[1673517739843,46.81,16.024,16.011,23.2233]
[1673517740055,46.81,16.025,16.009,24.964796]
[1673517740260,43.42648314,16.033,16.01,264.88]
[1673517740579,285.50181682,16.053,16.02,88.3]
[1673517740913,35.27,16.05,16.021,54.53136933]
[1673517741225,46.74,16.049,16.021,97.87916639]
[1673517741431,20.0,16.048,16.022,20.96]
[1673517741646,46.74,16.047,16.023,20.96]
[1673517741967,20.0,16.046,16.024,0.96]
[1673517742157,46.75,16.045,16.024,0.96]
[1673517742488,46.75,16.045,16.025,20.96]
[1673517742799,17.65,16.04,16.01,108.34]
[1673517743022,66.77,16.039,16.021,119.8799]
[1673517743199,66.77,16.039,16.017,10.61113284]
[1673517743415,66.77,16.039,16.018,119.8799]
[1673517743847,20.0,16.038,16.018,119.8799]
[1673517744064,67.73,16.037,16.019,20.0]
[1673517744386,46.77,16.037,16.02,18.61]
[1673517744569,46.77,16.039,16.021,26.3]
[1673517744779,20.0,16.038,16.022,20.96]
[1673517745011,46.77,16.037,16.022,20.96]
[1673517745207,20.0,16.036,16.022,20.96]
[1673517745616,20.0,16.036,16.023,10.61113284]
[1673517745828,46.77,16.039,16.024,0.96]
[1673517745829,20.0,16.038,16.024,0.96]
[1673517746050,46.77,16.037,16.024,0.96]
[1673517746265,46.77,16.037,16.023,0.96]
[1673517746266,20.0,16.036,16.023,0.96]
[1673517746887,20.0,16.037,16.021,20.0]
[1673517747093,46.77,16.036,16.021,20.0]
[1673517747305,46.77,16.037,16.021,20.0]
[1673517747615,20.0,16.036,16.021,20.0]
[1673517748148,46.78,16.035,16.02,141.5959]
[1673517748358,46.78,16.035,16.02,115.3759]
[1673517748775,46.78,16.035,16.021,20.0]
[1673517749316,20.0,16.036,16.021,46.22]
[1673517749754,20.0,16.036,16.022,0.96]
[1673517750052,20.0,16.036,16.021,46.22]
[1673517750262,46.78,16.035,16.021,20.0]
[1673517750476,47.74,16.035,16.02,115.3759]
[1673517751420,20.0,16.034,16.02,115.3759]
[1673517751631,46.78,16.033,16.02,115.3759]
[1673517752157,0.96,16.032,16.02,115.3759]
[1673517752476,46.78,16.033,16.02,115.3759]
[1673517752675,46.78,16.035,16.02,115.3759]
[1673517753941,0.96,16.034,16.02,115.3759]
[1673517754135,46.78,16.033,16.02,115.3759]
[1673517754550,20.0,16.034,16.02,115.3759]
[1673517754768,46.78,16.035,16.02,115.3759]
[1673517754769,47.74,16.033,16.02,115.3759]
[1673517754992,0.96,16.033,16.02,115.3759]
[1673517755198,46.79,16.032,16.02,115.3759]
[1673517755406,46.78,16.035,16.02,115.3759]
[1673517755736,46.78,16.035,16.021,20.96]
[1673517757937,20.0,16.036,16.022,0.96]
[1673517758276,20.0,16.037,16.023,20.0]
[1673517758567,20.0,16.037,16.024,0.96]
[1673517759091,20.0,16.037,16.023,20.0]
[1673517759406,20.0,16.038,16.024,1.92]
[1673517759624,46.77,16.037,16.021,46.32]
[1673517759938,46.77,16.037,16.021,26.32]
[1673517760142,20.0,16.035,16.02,115.3759]
[1673517760334,46.78,16.034,16.02,115.3759]
[1673517762563,20.0,16.034,16.02,115.3759]
[1673517762775,46.78,16.033,16.02,115.3759]
[1673517763934,165.3022,16.035,16.02,115.3759]
[1673517765409,165.3022,16.035,16.021,21.92]
[1673517765720,165.3022,16.035,16.021,20.96]
[1673517766033,165.3022,16.035,16.021,20.0]
[1673517767066,46.78,16.035,16.021,20.0]
[1673517771371,46.78,16.035,16.02,135.3759]
[1673517771581,46.78,16.035,16.02,115.3759]
[1673517772318,20.0,16.036,16.021,26.35]
[1673517772548,46.78,16.035,16.02,115.3759]
[1673517772760,46.77,16.036,16.02,115.3759]
[1673517772971,20.0,16.035,16.02,115.3759]
[1673517773184,46.78,16.034,16.02,115.3759]
[1673517773386,20.0,16.032,16.02,115.3759]
[1673517773596,46.79,16.031,16.02,115.3759]
[1673517774568,46.79,16.031,16.015,144.7377]
[1673517774756,0.96,16.03,16.015,144.7377]
[1673517777702,46.79,16.031,16.016,0.96]
[1673517777912,46.78,16.034,16.017,0.96]
[1673517778133,20.0,16.033,16.016,20.0]
[1673517778346,26.55,16.03,16.014,20.0]
[1673517778530,66.79,16.029,16.011,112.2918]
[1673517778950,20.0,16.028,16.011,112.2918]
[1673517779165,66.8,16.027,16.011,112.2918]
[1673517779919,20.0,16.027,16.012,21.92]
[1673517780219,46.78,16.034,16.012,59.04113284]
[1673517780430,46.78,16.034,16.013,10.61113284]
[1673517780658,46.77,16.036,16.014,27.46]
[1673517780853,46.77,16.036,16.015,20.0]
[1673517781066,46.77,16.036,16.016,27.46]
[1673517781280,46.77,16.036,16.017,117.6062]
[1673517781505,65.91496728,16.036,16.018,26.5]
[1673517781713,65.91496728,16.036,16.017,144.1062]
[1673517781911,20.0,16.035,16.017,144.1062]
[1673517782122,46.78,16.034,16.017,117.6062]
[1673517782343,20.96,16.033,16.017,117.6062]
[1673517782554,46.79,16.032,16.017,116.6462]
[1673517783078,0.96,16.031,16.017,116.6462]
[1673517783908,46.79,16.03,16.017,116.6462]
[1673517785175,0.96,16.031,16.017,116.6462]
[1673517786972,73.34,16.03,16.017,116.6462]
[1673517787275,26.55,16.03,16.017,116.6462]
[1673517787703,46.79,16.032,16.018,20.96]
[1673517788119,46.79,16.032,16.019,0.96]
[1673517789156,46.78,16.034,16.019,0.96]
[1673517789373,46.78,16.034,16.018,20.96]
[1673517789581,0.96,16.033,16.018,20.0]
[1673517789787,46.79,16.032,16.017,116.6462]
[1673517790227,26.55,16.03,16.013,26.39]
[1673517790421,86.79,16.029,16.011,158.6918]
[1673517791280,86.79,16.029,16.013,0.96]
[1673517791690,105.93496728,16.029,16.011,138.6918]
[1673517792011,105.93496728,16.029,16.011,112.2918]
[1673517793351,17.96,16.028,16.011,112.2918]
[1673517793566,20.0,16.026,16.011,112.2918]
[1673517793795,46.81,16.025,16.011,112.2918]
[1673517794016,46.81,16.025,16.007,119.2279]
[1673517794197,20.0,16.023,16.007,119.2279]
[1673517794408,26.32,16.02,16.002,88.87513284]
[1673517794619,26.41,16.01,16.0,41.58633084]
[1673517794840,84.81,16.009,16.0,41.58633084]
[1673517795062,66.85,16.009,16.0,41.58633084]
[1673517795265,85.99496728,16.009,16.0,41.58633084]
[1673517795678,20.96,16.008,16.0,41.58633084]
[1673517795889,66.86,16.007,16.0,41.58633084]
[1673517796423,20.0,16.006,15.994,75.7816191]
[1673517796731,46.86,16.005,15.994,75.7816191]
[1673517796939,46.86,16.006,15.994,75.7816191]
[1673517797154,26.68,16.01,15.995,20.0]
[1673517797367,19.14496728,16.006,15.994,75.7816191]
[1673517797591,133.01,16.01,15.994,75.7816191]
[1673517797894,85.99496728,16.009,15.994,75.7816191]
[1673517798332,19.14496728,16.008,15.994,75.7816191]
[1673517798635,20.0,16.006,15.994,75.7816191]
[1673517798830,46.86,16.005,15.994,75.7816191]
[1673517800091,20.0,16.007,15.994,75.7816191]
[1673517800300,46.85,16.009,15.995,1.92]
[1673517800506,46.84,16.013,15.995,28.87]
[1673517800714,19.14496728,16.015,15.999,0.31252]
[1673517800935,46.84,16.014,15.999,0.31252]
[1673517801153,65.98496728,16.014,15.999,0.31252]
[1673517801361,26.41,16.01,15.999,0.31252]
[1673517801558,46.85,16.009,15.999,0.31252]
[1673517801770,20.0,16.008,15.999,0.31252]
[1673517802099,46.86,16.007,15.999,0.31252]
[1673517802310,66.00496728,16.007,15.999,0.31252]
[1673517802626,20.0,16.005,15.999,0.31252]
[1673517802938,66.01496728,16.004,15.999,0.31252]
[1673517803153,17.0,16.003,15.999,0.31252]
[1673517803347,46.87,16.002,15.999,0.31252]
[1673517803558,20.0,16.001,15.999,0.31252]
[1673517803767,47.84,16.0,15.999,0.31252]
[1673517804097,20.0,15.999,15.994,35.7816191]
[1673517804412,46.89,15.998,15.994,35.7816191]
[1673517804628,20.0,15.996,15.994,35.7816191]
[1673517804830,47.85,15.995,15.994,4.6856191]
[1673517805047,20.0,15.994,15.985,24.999658]
[1673517805246,46.9,15.993,15.991,6.64e-05]
[1673517806610,46.89,15.995,15.991,6.64e-05]
[1673517807033,46.89,15.996,15.991,6.64e-05]
[1673517807351,133.0,16.01,15.991,6.64e-05]
[1673517807573,159.182,16.009,15.991,6.64e-05]
[1673517807773,38.28993456,16.007,15.991,6.64e-05]
[1673517807983,46.87,16.004,15.991,6.64e-05]
[1673517808395,20.0,16.003,15.991,6.64e-05]
[1673517808598,46.87,16.002,15.991,6.64e-05]
[1673517808825,26.43,16.0,15.991,6.64e-05]
[1673517809024,46.88,15.999,15.991,6.64e-05]
[1673517809442,19.14496728,15.998,15.991,6.64e-05]
[1673517809655,67.85,15.997,15.991,6.64e-05]
[1673517810095,86.99496728,15.997,15.991,6.64e-05]
[1673517810407,20.0,15.996,15.991,6.64e-05]
[1673517810726,46.89,15.995,15.991,6.64e-05]
[1673517810907,20.0,15.994,15.991,6.64e-05]
[1673517811117,46.9,15.993,15.991,6.64e-05]
[1673517811539,20.0,15.992,15.991,6.64e-05]
[1673517811767,86.04496728,15.992,15.991,6.64e-05]
[1673517811984,103.04496728,15.992,15.991,6.64e-05]
[1673517812597,123.04496728,15.992,15.991,6.64e-05]
[1673517812813,103.9,15.992,15.991,6.64e-05]
[1673517813347,128.34244728,15.992,15.991,6.64e-05]
[1673517813765,20.0,15.991,15.979,25.007148]
[1673517813965,20.0,15.989,15.963,70.067948]
[1673517814170,26.58,15.98,15.964,20.0]
[1673517814376,46.94,15.979,15.964,20.0]
[1673517814708,20.0,15.978,15.964,20.0]
[1673517815024,46.94,15.979,15.964,62.0332496]
[1673517815235,46.94,15.979,15.963,37.1011976]
[1673517815429,46.94,15.979,15.961,20.0]
[1673517815640,46.94,15.979,15.963,20.0]
[1673517815849,46.94,15.979,15.964,20.0]
[1673517816814,20.0,15.987,15.964,20.0]
[1673517817025,20.0,15.988,15.964,20.0]
[1673517817215,280.21098195,16.006,15.97,132.86]
[1673517817216,133.07,16.0,15.97,132.86]
[1673517817424,20.0,15.992,15.972,20.0]
[1673517817737,20.0,15.992,15.968,115.8432]
[1673517817738,132.7,15.99,15.968,115.8432]
[1673517817970,1464.23077419,15.989,15.968,115.8432]
[1673517818378,1483.37574147,15.989,15.969,20.96]
[1673517818589,1304.38813465,15.988,15.969,20.96]
[1673517818787,1332.16316737,15.987,15.97,0.96]
[1673517819226,1265.24316737,15.987,15.971,0.96]
[1673517819425,1265.24316737,15.987,15.972,20.96]
[1673517819630,26.68,15.99,15.973,20.0]
[1673517819843,26.7,15.99,15.974,0.96]
[1673517820488,26.7,15.99,15.974,20.96]
[1673517821219,46.89,15.997,15.975,0.96]
[1673517821444,46.89,15.997,15.976,0.96]
[1673517822149,66.03496728,15.997,15.974,20.0]
[1673517822364,20.0,15.996,15.975,0.96]
[1673517822583,46.89,15.995,15.975,1.92]
[1673517822795,46.89,15.995,15.975,0.96]
[1673517823020,26.57,15.99,15.973,40.0]
[1673517823199,26.57,15.99,15.973,20.0]
[1673517823538,46.91,15.989,15.973,20.0]
[1673517823935,20.0,15.988,15.96,211.9719]
[1673517824145,84.88,15.987,15.966,111.0534]
[1673517824377,20.0,15.986,15.966,111.0534]
[1673517824586,46.92,15.985,15.966,111.0534]
[1673517824795,20.96,15.984,15.966,111.0534]
[1673517825115,46.93,15.983,15.966,111.0534]
[1673517825433,20.0,15.982,15.966,111.0534]
[1673517825623,46.93,15.981,15.966,111.0534]
[1673517826353,46.93,15.983,15.966,111.0534]
[1673517827205,20.0,15.982,15.966,111.0534]
[1673517827402,46.93,15.981,15.966,111.0534]
[1673517827611,46.93,15.983,15.966,111.0534]
[1673517827847,46.92,15.985,15.967,20.0]
[1673517828356,39.14496728,15.987,15.967,20.0]
[1673517828357,20.0,15.984,15.967,20.0]
[1673517828564,46.93,15.983,15.967,20.0]
[1673517828776,46.92,15.986,15.967,20.0]
[1673517829313,46.92,15.986,15.968,0.96]
[1673517830559,46.92,15.986,15.968,110.9246]
[1673517830770,46.92,15.986,15.968,109.9646]
[1673517830981,46.92,15.986,15.969,20.0]
[1673517831202,46.92,15.986,15.97,0.96]
[1673517831732,46.92,15.986,15.968,109.9646]
[1673517831919,46.92,15.986,15.969,0.96]
[1673517832130,46.92,15.986,15.968,109.9646]
[1673517832340,46.92,15.986,15.969,21.92]
[1673517832996,46.92,15.986,15.969,1.92]
[1673517833199,0.96,15.985,15.968,109.9646]
[1673517833416,46.93,15.984,15.968,109.9646]
[1673517833626,20.0,15.983,15.953,206.7]
[1673517833830,26.7,15.98,15.961,115.8006]
[1673517834145,83.94,15.979,15.961,115.8006]
[1673517834357,20.96,15.978,15.961,115.8006]
[1673517834568,66.95,15.977,15.961,115.8006]
[1673517834965,20.0,15.977,15.961,115.8006]
[1673517835174,46.94,15.98,15.962,20.0]
[1673517835404,46.93,15.981,15.963,1.92]
[1673517835597,19.14496728,15.985,15.963,1.92]
[1673517835808,46.93,15.984,15.963,1.92]
[1673517836439,46.93,15.984,15.963,21.92]
[1673517837078,46.92,15.986,15.97,26.58]
[1673517837278,1265.24316737,15.988,15.97,26.58]
[1673517837279,20.0,15.984,15.971,20.0]
[1673517837501,1265.24316737,15.988,15.971,50.98443563]
[1673517837708,1265.24316737,15.988,15.972,30.98443563]
[1673517837925,1312.13316737,15.996,15.973,25.242]
[1673517838240,20.0,15.995,15.974,20.96]
[1673517838428,46.9,15.994,15.975,8.793]
[1673517838646,46.9,15.994,15.975,18.81743563]
[1673517838872,20.0,15.993,15.976,1.92]
[1673517839065,46.9,15.992,15.976,1.92]
[1673517839507,46.9,15.992,15.977,10.02443563]
[1673517839704,46.89,15.995,15.98,26.58]
[1673517840558,46.89,15.995,15.981,20.96]
[1673517840974,46.89,15.995,15.981,0.96]
[1673517841190,46.89,15.996,15.981,0.96]
[1673517841377,1265.24316737,16.007,15.982,0.96]
[1673517841378,46.88,15.999,15.982,0.96]
[1673517841588,20.0,15.998,15.982,0.96]
[1673517841812,46.89,15.997,15.982,0.96]
[1673517842342,46.89,15.997,15.981,10.02443563]
[1673517842554,46.89,15.997,15.978,113.8158]
[1673517842762,20.0,15.996,15.979,20.96]
[1673517843078,46.89,15.997,15.979,20.96]
[1673517843079,46.89,15.995,15.98,26.45]
[1673517843395,46.89,15.997,15.981,1.92]
[1673517843605,46.89,15.997,15.98,26.45]
[1673517843811,20.96,15.996,15.98,26.45]
[1673517844015,46.89,15.995,15.98,26.45]
[1673517844846,46.89,15.997,15.98,26.45]
[1673517845898,46.89,15.997,15.981,0.96]
[1673517846325,46.89,15.997,15.98,0.96]
[1673517847596,20.0,15.996,15.98,0.96]
[1673517847803,46.89,15.995,15.978,113.8158]
[1673517848123,20.0,15.994,15.978,113.8158]
[1673517848345,46.9,15.993,15.978,113.8158]
[1673517848534,20.0,15.992,15.978,113.8158]
[1673517848745,46.91,15.991,15.978,113.8158]
[1673517849180,46.91,15.991,15.973,20.0]
[1673517849376,46.9,15.993,15.973,148.99603563]
[1673517849699,26.57,15.99,15.973,118.9716]
[1673517849913,66.91,15.989,15.968,119.4467]
[1673517850103,20.0,15.988,15.97,118.9716]
[1673517850314,46.92,15.987,15.97,118.9716]
[1673517850534,46.92,15.987,15.97,128.99603563]
[1673517851380,46.91,15.988,15.971,0.96]
[1673517851580,20.0,15.987,15.972,0.96]
[1673517851795,46.92,15.986,15.973,0.96]
[1673517852021,46.92,15.986,15.971,20.0]
[1673517853380,46.92,15.986,15.97,128.99603563]
[1673517853593,46.92,15.986,15.971,0.96]
[1673517854015,46.92,15.986,15.97,118.9716]
[1673517854858,46.92,15.986,15.971,30.02443563]
[1673517855074,46.92,15.986,15.972,0.96]
[1673517855265,46.92,15.986,15.971,30.02443563]
[1673517855475,46.92,15.986,15.97,118.9716]
[1673517857274,46.92,15.986,15.971,0.96]
[1673517857484,46.92,15.986,15.971,20.96]
[1673517858009,46.9,15.993,15.972,12.62843563]
[1673517858223,46.89,15.995,15.973,20.96]
[1673517858538,46.89,15.995,15.974,5.527]
[1673517858764,46.89,15.995,15.974,15.55143563]
[1673517858940,46.89,15.995,15.976,20.0]
[1673517859148,46.89,15.995,15.98,26.58]
[1673517859490,46.88,15.999,15.981,0.96]
[1673517859696,1271.89456737,16.007,15.981,0.96]
[1673517859697,46.86,16.006,15.981,0.96]
[1673517859910,46.86,16.006,15.982,1.66644674]
[1673517860093,46.86,16.006,15.983,14.9]
[1673517860425,20.0,16.005,15.984,20.96]
[1673517860638,46.87,16.004,15.985,18.39]
[1673517860953,20.0,16.005,15.986,0.96]
[1673517861271,46.87,16.004,15.986,113.8678]
[1673517862214,0.96,16.003,15.986,113.8678]
[1673517862424,46.87,16.002,15.986,113.8678]
[1673517864310,0.96,16.001,15.986,113.8678]
[1673517864523,46.87,16.004,15.986,113.8678]
[1673517864722,0.96,16.003,15.986,113.8678]
[1673517864931,46.87,16.002,15.986,113.8678]
[1673517865156,46.87,16.002,15.987,20.0]
[1673517865360,46.86,16.006,15.988,0.96]
[1673517866196,46.86,16.006,15.988,14.22843563]
[1673517866405,46.86,16.006,15.99,26.58]
[1673517866619,46.86,16.006,15.991,0.96]
[1673517866826,26.91,16.01,15.991,0.96]
[1673517866827,46.85,16.01,15.992,7.966]
[1673517867044,157.749,16.017,15.993,20.96]
[1673517867264,157.749,16.017,15.994,30.18]
[1673517867475,20.0,16.016,15.995,20.96]
[1673517867679,157.749,16.017,15.996,116.8262]
[1673517867680,46.84,16.015,15.996,116.8262]
[1673517867893,20.0,16.015,15.997,21.92]
[1673517868208,46.84,16.014,16.0,26.7]
[1673517868402,46.83,16.016,16.001,0.96]
[1673517868609,46.82,16.019,16.002,0.96]
[1673517868820,46.82,16.019,16.002,10.02443563]
[1673517869042,20.0,16.018,16.002,10.02443563]
[1673517869252,46.83,16.017,16.0,26.7]
[1673517869468,46.83,16.017,16.001,0.96]
[1673517869683,46.83,16.017,16.001,20.96]
[1673517869894,46.83,16.018,16.002,0.96]
[1673517870085,20.0,16.017,16.001,20.96]
[1673517870425,46.83,16.016,16.002,0.90519317]
[1673517870844,46.83,16.016,16.003,0.96]
[1673517871039,46.83,16.016,16.004,0.90519317]
[1673517871446,46.83,16.016,16.003,0.96]
[1673517871677,46.81,16.025,16.005,10.02443563]
[1673517871896,20.0,16.027,16.007,20.0]
[1673517872087,46.8,16.026,16.008,2.0501483]
[1673517872815,46.8,16.026,16.01,1.0901483]
[1673517873236,46.8,16.026,16.009,1.0901483]
[1673517873446,46.8,16.026,16.008,1.0901483]
[1673517873886,20.96,16.025,16.007,1.0901483]
[1673517874202,46.81,16.024,16.007,1.0901483]
[1673517874406,26.57,16.02,16.007,1.0901483]
[1673517874613,20.0,16.018,16.002,111.4251]
[1673517874815,66.83,16.017,16.0,26.7]
[1673517875026,66.83,16.017,15.998,112.5509]
[1673517875255,20.0,16.016,15.998,112.5509]
[1673517875449,46.84,16.015,15.998,112.5509]
[1673517875657,46.84,16.015,15.999,20.0]
[1673517875867,20.0,16.015,15.999,20.0]
[1673517876088,46.84,16.014,15.998,112.5509]
[1673517876497,46.83,16.016,15.999,20.0]
[1673517877245,46.83,16.016,16.0,0.96]
[1673517878082,46.83,16.016,16.002,20.0]
[1673517878291,502.9,16.03,16.002,20.0]
[1673517878292,46.82,16.019,16.003,26.71]
[1673517878495,46.81,16.025,16.003,36.73443563]
[1673517878701,46.81,16.025,16.005,0.71770006]
[1673517878910,46.81,16.025,16.007,0.72587808]
[1673517879131,46.31,16.025,16.009,0.72587808]
[1673517879330,46.31,16.025,16.01,1.92]
[1673517879553,46.31,16.025,16.008,10.02443563]
[1673517879764,46.31,16.025,16.009,0.96]
[1673517879984,46.31,16.025,16.006,27.09]
[1673517880202,46.31,16.025,16.003,116.8165]
[1673517880388,46.31,16.025,16.005,0.96]
[1673517880596,20.0,16.024,16.004,40.0]
[1673517880934,47.77,16.023,16.005,20.71772835]
[1673517881145,47.77,16.023,16.005,20.0]
[1673517881550,47.77,16.023,16.004,40.0]
[1673517881757,47.77,16.023,16.005,1.6352182]
[1673517882073,47.77,16.023,16.005,0.96]
[1673517882724,26.7,16.02,16.004,20.0]
[1673517883034,46.82,16.019,16.004,20.0]
[1673517884386,0.96,16.018,16.002,110.791]
[1673517884595,46.83,16.017,16.002,110.791]
[1673517885672,20.0,16.016,16.0,112.2249]
[1673517885887,47.8,16.015,15.996,10.02443563]
[1673517886093,47.8,16.015,15.995,112.2249]
[1673517886293,20.0,16.013,15.992,110.3723]
[1673517886503,63.84,16.012,15.992,110.3723]
[1673517886714,20.96,16.011,15.992,110.3723]
[1673517887048,46.85,16.01,15.992,110.3723]
[1673517887456,20.96,16.009,15.992,110.3723]
[1673517887671,46.86,16.008,15.992,110.3723]
[1673517888209,46.86,16.008,15.994,20.0]
[1673517888397,46.84,16.015,15.994,20.0]
[1673517888725,20.0,16.014,15.993,40.0]
[1673517888916,46.84,16.013,15.993,20.0]
[1673517889130,46.84,16.013,15.992,110.3723]
[1673517889131,40.0,16.012,15.992,110.3723]
[1673517889337,158.9287,16.011,15.992,110.3723]
[1673517889552,20.0,16.01,15.992,120.39673563]
[1673517889775,46.85,16.009,15.993,30.02443563]
[1673517889990,46.85,16.009,15.993,10.02443563]
[1673517890301,20.0,16.008,15.992,110.3723]
[1673517890517,46.86,16.007,15.992,110.3723]
[1673517891759,46.86,16.007,15.993,0.96]
[1673517891981,20.0,16.008,15.993,21.92]
[1673517892189,46.86,16.007,15.993,21.92]
[1673517892401,46.86,16.008,15.993,21.92]
[1673517892598,20.0,16.007,15.993,31.94443563]
[1673517893350,20.0,16.009,15.993,31.94443563]
[1673517893561,46.86,16.008,15.993,31.94443563]
[1673517893773,20.0,16.007,15.993,31.94443563]
[1673517894504,20.0,16.009,15.993,30.02443563]
[1673517894695,46.86,16.008,15.993,30.02443563]
[1673517894907,20.0,16.007,15.993,30.02443563]
[1673517895545,46.85,16.01,15.994,20.96]
[1673517895749,112.0787,16.011,15.995,0.96]
[1673517896187,46.83,16.016,15.996,0.96]
[1673517896387,160.3451,16.016,15.996,10.98443563]
[1673517896606,160.3451,16.016,15.997,17.40243563]
[1673517897021,160.3451,16.016,15.998,10.02443563]
[1673517897229,160.3451,16.016,15.999,20.96]
[1673517897440,160.3451,16.016,16.0,112.5735]
[1673517897655,160.3451,16.016,16.001,20.96]
[1673517897875,160.3451,16.016,16.002,0.96]
[1673517900276,160.3451,16.016,16.001,20.0]
[1673517900489,160.3451,16.016,16.0,132.5735]